Cogmind - Beta 13 @@@ ROGUE MODE // 2024.04.06 @ 09:24:42 Player: _An Result: Destroyed by D-53 Grenadier with Mini Grenade Launcher Performance ------------- Evolutions (0) 0 Regions Visited (2) 400 Robots Destroyed (12) 60 Value Destroyed (433) 433 Prototype IDs (0) 0 Alien Tech Used (0) 0 Bonus (0) 0 TOTAL SCORE: 893 Bonus ------- None Cogmind --------- Core Integrity 0/250 Matter 290/300 Energy 82/100 System Corruption 1% Temperature Cool (0) Movement Core (50) Location -10/Mines Parts ------- > --- POWER (1) -------- (None) > --- PROPULSION (2) --- Aluminum Leg > --- UTILITY (2) ------ (None) > --- WEAPON (2) ------- (None) > --- INVENTORY (5) ---- Light Ion Engine Medium Matter Pod (86) Transport Network Coupler Peak State ------------ > --- POWER ------------ Light Ion Engine > --- PROPULSION ------- Wheel Wheel > --- UTILITY ---------- Small Storage Unit Improved Terrain Scanner > --- WEAPON ----------- Medium Laser Light Assault Rifle > --- INVENTORY -------- (None) [Rating: 9] Favorites ----------- Power Ion Engine Engine Ion Engine Propulsion Wheel Leg Aluminum Leg Wheel Wheel Utility Small Storage Unit Device Improved Terrain Scanner Storage Small Storage Unit Weapon Medium Laser Energy Gun Medium Laser Ballistic Gun Light Assault Rifle Build | -11 -10 -10 ------- Run | Yrd Mat Min Slots Evolved . | . . . Power . | . . . Propulsion . | . . . Utility . | . . . Weapon . | . . . Parts Attached 10 | 7 1 2 Power 2 | 1 1 . Engine 2 | 1 1 . Core . | . . . Reactor . | . . . Propulsion 3 | 2 . 1 Treads . | . . . Leg 1 | . . 1 Wheel 2 | 2 . . Hover . | . . . Flight . | . . . Utility 2 | 2 . . Device 1 | 1 . . Storage 1 | 1 . . Processor . | . . . Hackware . | . . . Protection . | . . . Artifact . | . . . Weapon 3 | 2 . 1 Energy Gun 2 | 1 . 1 Energy Cannon . | . . . Ballistic Gun 1 | 1 . . Ballistic Cannon . | . . . Launcher . | . . . Special Weapon . | . . . Impact Weapon . | . . . Slashing Weapon . | . . . Piercing Weapon . | . . . Special Melee Weapon . | . . . Unidentified Prototypes . | . . . Parts Lost 2 | . . 2 Power 1 | . . 1 Propulsion . | . . . Utility . | . . . Weapon 1 | . . 1 Highest Loss Streak 2 | . . 2 To Critical Strikes . | . . . Average Slot Usage (%) 97 | . 100 90 Engine 13 | . 14 10 Wheel 27 | . 28 26 Device 13 | . 14 13 Storage 13 | . 14 13 Energy Gun 14 | . 14 15 Ballistic Gun 13 | . 14 10 Naked Turns 6 | . . 6 Heaviest Build 14 | 12 14 14 Greatest Support 20 | 20 20 20 Greatest Overweight (x) . | . . . Average Overweight (x) . | . . . Largest Inventory Capacity 8 | 8 8 8 Average Capacity 7 | 7 8 7 Most Carried 4 | . 4 4 Average Carried 2 | . 1 3 Final Capacity 8 | 8 8 5 Final Carried 4 | . 4 3 Class Distribution -------------------- 100% | Mutant Dominant Class ---------------- Mutant | -10/Materials Mutant | -10/Mines Resources | -11 -10 -10 ----------- Run | Yrd Mat Min Matter Collected 404 | 176 135 93 Remotely . | . . . Salvage Created 526 | 14 419 93 Parts 28 | 1 22 5 Haulers Intercepted . | . . . Recyclers Shooed . | . . . Parts Field Recycled . | . . . Retrieved Matter . | . . . Parts Self-Destructed . | . . . Prevented . | . . . Kills | -11 -10 -10 ------- Run | Yrd Mat Min Combat Hostiles Destroyed 11 | . 9 2 Guns 11 | . 9 2 Classes Destroyed 2 | 1 1 . Tunneler 1 | 1 . . Grunt 11 | . 9 2 Best Kill Streak 3 | 1 3 2 Combat Bots Only 3 | . 3 2 Max Kills in Single Turn 1 | 1 1 1 Gunslinging . | . . . Exploded . | . . . Melee . | . . . Uniques/NPCs Destroyed . | . . . Combat | -11 -10 -10 -------- Run | Yrd Mat Min Hostile Shots Fired 55 | . 38 17 Missed 17 | . 11 6 Damage Taken 554 | . 345 209 Core 250 | . 104 146 Absorbed by Shields . | . . . Core Remaining (%) 100 | 100 . . Volleys Fired 42 | 2 31 9 Largest 2 | 2 2 2 Hottest 90 | 70 70 90 Shots Fired 82 | 4 62 16 Gun 82 | 4 62 16 Cannon . | . . . Launcher . | . . . Special . | . . . Kinetic 38 | 2 31 5 Thermal 44 | 2 31 11 Explosive . | . . . Electromagnetic . | . . . Robot Hit Streak 17 | 3 17 12 Robot Miss Streak 2 | 1 2 1 Penetration Max . | . . . Secondary Targets 2 | . 2 . Max Gunslinging Chain 1 | . 1 . Shots Hit Robots 62 | 3 46 13 Core Hits 28 | 1 22 5 Critical Kills . | . . . Critical Parts Destroyed . | . . . Critical Strikes 5 | . 4 1 Burn 5 | . 4 1 Melee Attacks . | . . . Impact . | . . . Slashing . | . . . Piercing . | . . . Sneak Attacks . | . . . Combat Hostiles . | . . . Follow-up Attacks . | . . . Damage Inflicted 651 | 30 481 140 Guns 651 | 30 481 140 Cannons . | . . . Explosions . | . . . Melee . | . . . Ramming . | . . . Kinetic 215 | 6 178 31 Thermal 436 | 24 303 109 Explosive . | . . . Electromagnetic . | . . . Impact . | . . . Slashing . | . . . Piercing . | . . . Highest Corruption 1 | . 1 1 Average Corruption 1 | . 1 1 Corruption Purged . | . . . Corruption Blocked . | . . . Effects 4 | . 1 3 Message Errors 2 | . . 2 Data Loss (minor) 1 | . . 1 Data Loss (major) 1 | . 1 . Overload Shots . | . . . Overflow Damage . | . . . Projectiles . | . . . Explosions . | . . . Melee . | . . . Knockbacks . | . . . Impact . | . . . Kinetic . | . . . Secondary . | . . . Self-Inflicted Damage . | . . . Shots . | . . . Rammed . | . . . Targets Rammed . | . . . Kicked . | . . . Crushed . | . . . Highest Temperature 213 | 40 213 82 Average Temperature 71 | 23 81 44 Received Heat Transfer 291 | . 195 96 Siege Activations . | . . . Robots Corrupted . | . . . Combat Hostiles . | . . . Parts Fried . | . . . Impact Corruptions . | . . . Robots Melted . | . . . Combat Hostiles . | . . . Parts Melted 4 | . 2 2 Heat Transferred 1641 | 74 1184 383 Parts Sabotaged . | . . . Parts Stolen . | . . . Parts Stripped . | . . . Power Chain Reactions . | . . . Alert | -11 -10 -10 ------- Run | Yrd Mat Min Peak Influence 141 | 5 141 30 Initial 3 | . 3 . Average 53 | . 78 7 Maximum Alert Level . | . . . Low Security (%) 100 | 100 100 100 Level 1 . | . . . Level 2 . | . . . Level 3 . | . . . Level 4 . | . . . Level 5 . | . . . High Security . | . . . Max Security . | . . . Squads Dispatched 2 | . 2 . Investigation 2 | . 2 . Extermination . | . . . Reinforcement . | . . . Assault . | . . . Garrison . | . . . Intercept . | . . . Searches Triggered . | . . . Construction Impeded . | . . . Haulers Reinforced . | . . . Active Scanning Responses . | . . . Cargo Convoy Interrupts . | . . . Stealth | -11 -10 -10 --------- Run | Yrd Mat Min Distress Signals 2 | . 1 1 Communications Jammed . | . . . Distress Signals . | . . . Times Spotted 23 | . 11 12 Peak Tracking Total 18 | . 5 18 Tactical Retreats 1 | . . 1 Traps | -11 -10 -10 ------- Run | Yrd Mat Min Traps Triggered 2 | . 2 . Indirectly . | . . . Trap Hack Attempts . | . . . Triggered . | . . . Disarmed . | . . . Reprogrammed . | . . . Reused . | . . . Traps Extracted . | . . . Installed . | . . . Triggered . | . . . Machines | -11 -10 -10 ---------- Run | Yrd Mat Min Machines Disabled . | . . . Max in Single Turn . | . . . Machines Repaired . | . . . Machines Dismantled . | . . . Machines Sabotaged . | . . . Overloaded Fab Kills . | . . . Hacking | -11 -10 -10 --------- Run | Yrd Mat Min Machines Accessed 4 | . 4 . Terminals 3 | . 3 . Fabricators . | . . . Repair Stations . | . . . Recycling Units 1 | . 1 . Scanalyzers . | . . . Garrison Access . | . . . Total Hacks 11 | . 11 . Successful 5 | . 5 . Failed 6 | . 6 . Catastrophic 1 | . 1 . Database Lockouts . | . . . Manual 7 | . 7 . Terminals 9 | . 9 . Fabricators . | . . . Repair Stations . | . . . Recycling Units 2 | . 2 . Scanalyzers . | . . . Garrison Access . | . . . Terminal Hacks 3 | . 3 . Branch Access Points 1 | . 1 . Unreport Threat 1 | . 1 . Maintenance Status 1 | . 1 . Fabricator Hacks . | . . . Repair Station Hacks . | . . . Recycling Unit Hacks 1 | . 1 . Report Inventory 1 | . 1 . Scanalyzer . | . . . Garrison Access Hacks . | . . . Unauthorized Hacks 1 | . 1 . Terminals 1 | . 1 . Botnet 1 | . 1 . Fabricators . | . . . Repair Stations . | . . . Recycling Units . | . . . Scanalyzers . | . . . Garrison Access . | . . . Data Cores Recovered . | . . . Used . | . . . Hacking Detections 3 | . 3 . Full Trace Events 1 | . 1 . Feedback Events . | . . . Feedback Blocked . | . . . Robot Schematics Acquired . | . . . Robots Built . | . . . Authchips . | . . . Time . | . . . Total Robot Build Rating . | . . . Part Schematics Acquired . | . . . Parts Built . | . . . Authchips . | . . . Time . | . . . Total Part Build Rating . | . . . Parts Repaired . | . . . Time . | . . . Parts Recycled . | . . . Recycled Matter . | . . . Retrieved Matter . | . . . Retrieved Components . | . . . Parts Scanalyzed . | . . . Part Schematics Acquired . | . . . Parts Damaged . | . . . Bothacking | -11 -10 -10 ------------ Run | Yrd Mat Min Used RIF Installer . | . . . Robots Hacked . | . . . Non-combat . | . . . Combat . | . . . Robot Hacks Applied . | . . . Relay Couplers Released . | . . . Fabnet Peak Effective % . | . . . Robots Rewired . | . . . Allies Hacked . | . . . Hacks Repelled . | . . . Allies | -11 -10 -10 -------- Run | Yrd Mat Min Total Allies 3 | . . 3 Largest Group 3 | . . 3 Highest-Rated Group 40 | . . 40 Highest-Rated Ally 16 | . . 16 Total Orders . | . . . Ally Attacks 12 | . . 12 Total Damage 123 | . . 123 Kills 1 | . . 1 Allies Corrupted . | . . . Allies Melted . | . . . Intel | -11 -10 -10 ------- Run | Yrd Mat Min Robot Analysis Total . | . . . Derelict Logs Recovered . | . . . Drone Launches . | . . . Drone Recoveries . | . . . Exploration | -11 -10 -10 ------------- Run | Yrd Mat Min Turns Passed 627 | 53 415 159 Spaces Moved 546 | 50 330 166 Core 33 | 12 . 21 Treads . | . . . Legs . | . . . Wheels 513 | 38 330 145 Hover . | . . . Flight . | . . . Fastest Speed 50 | 50 80 50 Average Speed 78 | 72 80 76 Slowest Speed 80 | 80 80 80 Overloaded Moves . | . . . Propulsion Burnouts . | . . . Robots Hopped . | . . . Cave-ins Triggered . | . . . Exploration Rate (%) 27 | 3 51 29 Regions Visited 2 Branch Regions 1 Pre-discovered Areas . | . . . Known Exits Taken 1 | . 1 . Unknown Exits Taken 1 | 1 . . Scrap Searched . | . . . Spaces Dug . | . . . Terrain Destroyed . | . . . Melee . | . . . Projectile . | . . . AOE . | . . . Terrain Rammed . | . . . Walls Destroyed . | . . . Machines Disabled . | . . . Actions | -11 -10 -10 --------- Run | Yrd Mat Min Total 666 | 59 424 183 Wait 67 | 1 60 6 Move 544 | 49 329 166 Hop . | . . . Pick Up 3 | . 3 . Fast Attach 8 | 7 . 1 Attach 1 | . . 1 Detach . | . . . Swap 1 | . 1 . Drop . | . . . Fire 42 | 2 31 9 Melee . | . . . Ram . | . . . Kick . | . . . Crush . | . . . Escape Stasis . | . . . Rewire . | . . . Trap . | . . . Miscellaneous . | . . . Route ------- -11/Scrapyard -10/Materials (discovered 4 exits: [*Mat] / *Min x2 / [Sub]) -10/Mines (discovered 1 exit: [*Mat]) History --------- Turn | Location | Event 5 | -11/Scrapyard | Discovered new exit (range 15) 54 | -11/Scrapyard | Entered Materials 113 | -10/Materials | Identified exit to Mines 284 | -10/Materials | Discovered new exit (range 12) 300 | -10/Materials | Build established: Mutant 388 | -10/Materials | Discovered new exit (range 3) 469 | -10/Materials | Entered Mines 502 | -10/Mines | Assisted by bots powering up and referring to "LRC-V3" 512 | -10/Mines | Assembled infested the area 545 | -10/Mines | Discovered new exit (range 6) 559 | -10/Mines | Lost 3 allies 568 | -10/Mines | Core integrity fell below 50% 617 | -10/Mines | Core integrity fell below 20% 617 | -10/Mines | Released all parts (6) 628 | -10/Mines | Destroyed by D-53 Grenadier with Mini Grenade Launcher Last Messages --------------- GVU<2IB7VQZ8ESE58NGERR4%R|GDFH6RB2 Critical hit (Burn: +37). G-47 Trooper suffers critical hit (Burn). Lgt. Assault Rifle destroyed. Ion Engine destroyed. Imp. Heat Sink melted. Lgt. Nuclear Core melted. G-47 Trooper destroyed. Acquired 57 matter. Acquired 36 matter. U-05 Engineer lays Concrete. Released Med. Laser. Released Sml. Storage Unit. Released Wheel. Released Imp. Terrain Scanner. Released Sml. Laser. V>RNCJ4H/=NIH8BEWXPKQSEXI>HC U-05 Engineer lays Concrete. U-05 Engineer builds a Wall. Acquired Aluminum Leg. Map ----- +----------------------------------------------------+ | ?????????? ??????????????????????####????## ##? | | ?????????????? ???????????????##?? ##???# #? | | #???????????????????????#????? ??# ##### < #? | | ???????????? ??????? ??? ###??# ??# ## #?? | | ??????????????????????? ##?# ??# ## ## #?? | | ?????????????##????????? #?# #?# ### #?? | | ????????????? #????????# ??# ### ####### #?? | | ?????????????# #???????## ?## ## #?#### ##?? | | ?????????????# #???????# ### # ### #??? | | ????????####?# ######### # ##??? | | ????????? #?# #?# # # ##???? | | ?#?#?????# #?# ## # # ##### ###????? | | ????????## ### ## ##% ?## #???## #??????? | | ????????# %= # % #??# ##????# #??????? | | #####=%*%! ### #?????# #??????? | | ####### #?????# #??????? | | ### ##?????# ###?### #??????? | | ?????# ?#?????# # ## # #######??## #?????#? | | ???????#????????# # # # = ### ##?## #??????? | | ???????????????## # =[! ### ##??????? | | ???????????????# # # ![ # ##?????? | | ????????????????# # ### ### ##????? | | ?????????######## #####?## = ##???? | | ??????????? ##????###[ = #???? | | ??????????????# #####??#[ #???? | | ??????????????# ## @ #### ## #???? | | ????????# #### d #### ##??#? | | ????????## """ ##??# ###??####????? | | ?????????## """ #????# ######??#?????????? | | ??????????? """ #???#?## ##?#??#?#??????????? | | ??????????? #??#????#######????#???????#?????? | | ??????????? #?????#????????#???#?????#????????? | | ?????????? #???#?????#????????????????????????? | | ?????????# ##??????????????????????#?????#?#????? | | ?????????# ?????????????????????????????????????? | | ?????????# ?????????????????????#????????????????? | | ?????????#???????????????????????????????????????? | | ??????????????????????????? ?????????????????????? | | ?????????????????????#??????? ???????????????????? | | ????????????????????????????? ???????????????????? | | ?????????????????????????????????????????????????? | | ????????????????????????????? ????? ?????????????? | | ?????????????????????????????????????????????????? | | ?????????????????????????????????????????????????? | | ?????????????????????????????????????????????????? | | ?????????????????????????????????????????????????? | | ?????????????????????????????????????????????????? | | ?????????????????????????????????????????????????? | | ?????????????????????????????????????????????????? | | ?????????????????????????????????????????????????? | +----------------------------------------------------+ Best States ------------- Heat Dissipation 25 Energy Generation 10 Energy Capacity 250 Matter Stores 300 Matter Capacity 300 Sight Range 16 Terrain Scan Range 16 Terrain Scan Density 10 Evasion (%) 50 Item Schematics ----------------- None Robot Schematics ------------------ None Fabricated ------------ Nothing Alien Tech Used ----------------- None Achievements -------------- None Challenges ------------ None Game ------ Seed DisruptionChromaticExpander Manual? 0 Play Time 00:07:23 Cumulative 19.6 hours Start 2024.04.06 @ 09:18:19 End 2024.04.06 @ 09:24:42 Sessions 1 Manual Loads 0 Difficulty Rogue Special Mode None Game No. 34 Rogue 34 Adventurer 0 Explorer 0 Win Type - Total 0 Types 0/0/0/0/0/0/0/0/0 Lore% 13 Gallery% 30 Achievement% 26 Wizard Run 0 Options --------- Layout 1 ASCII 0 Keyboard 1 Movement Numpad Keybinds 0 Fullscreen 1 Font 32/SmallcapsGlow Map View 50x35 Zoom Use 0% Tactical HUD 0 Map Filters NONE Filters NONE Steam 1 RUN: ca0254ba-883f-4910-af68-121d31a25433